bitfinex/quotes_SOLUSD_20241231
["timestamp","ask_amount","ask_price","bid_price","bid_amount"]
[1735672985453,8.09567432,194.68,194.63,1.6148]
[1735672985628,8.09567432,194.67,194.63,1.6148]
[1735672985945,8.09567432,194.68,194.63,1.6148]
[1735672986364,8.09567432,194.67,194.63,1.6148]
[1735672986548,8.09567432,194.66,194.59,8.09567432]
[1735672986760,8.09567432,194.67,194.6,8.09567432]
[1735672987358,8.09567432,194.67,194.61,8.09567432]
[1735672987829,8.09567432,194.68,194.61,8.09567432]
[1735672988654,1.5095,194.72,194.62,27.34877432]
[1735672988951,8.09567432,194.69,194.62,27.34877432]
[1735672991225,8.09567432,194.66,194.62,6.408]
[1735672991430,8.09567432,194.65,194.59,12.8473]
[1735672991739,8.09567432,194.64,194.59,12.8473]
[1735672991939,8.09567432,194.65,194.59,12.8473]
[1735672993650,8.09567432,194.66,194.59,20.94297432]
[1735672994932,8.09567432,194.67,194.6,8.09567432]
[1735672995358,8.09567432,194.66,194.59,20.94297432]
[1735672996756,8.09567432,194.67,194.6,8.09567432]
[1735672998556,5.70777746,194.7,194.62,8.09567432]
[1735672998757,8.09567432,194.63,194.57,6.6163]
[1735672998939,8.09567432,194.59,194.57,6.6163]
[1735672999140,8.09567432,194.6,194.57,6.6163]
[1735673000840,8.09567432,194.61,194.57,6.6163]
[1735673001241,8.09567432,194.62,194.57,6.6163]
[1735673001950,8.09567432,194.63,194.57,14.71197432]
[1735673002149,8.09567432,194.63,194.57,6.6163]
[1735673002365,8.09567432,194.63,194.58,12.8481]
[1735673004259,8.09567432,194.65,194.58,20.94377432]
[1735673004458,8.09567432,194.66,194.6,8.09567432]
[1735673004767,8.09567432,194.67,194.6,8.09567432]
[1735673004964,8.09567432,194.66,194.6,8.09567432]
[1735673005179,8.09567432,194.65,194.59,8.09567432]
[1735673007639,8.09567432,194.64,194.58,20.94377432]
[1735673008240,8.09567432,194.65,194.59,8.09567432]
[1735673008965,5.37374401,194.72,194.61,8.09567432]
[1735673009148,8.09567432,194.67,194.61,8.09567432]
[1735673009546,8.09567432,194.66,194.6,8.09567432]
[1735673009948,1.5095,194.72,194.59,8.09567432]
[1735673009949,8.09567432,194.65,194.59,8.09567432]
[1735673010365,8.09567432,194.63,194.58,12.8481]
[1735673010575,8.09567432,194.63,194.57,14.71197432]
[1735673010772,8.09567432,194.62,194.57,6.6163]
[1735673010954,8.09567432,194.61,194.53,1.63]
[1735673011154,8.09567432,194.61,194.55,8.09567432]
[1735673011664,8.09567432,194.6,194.54,8.09567432]
[1735673011861,8.09567432,194.61,194.56,8.09567432]
[1735673012171,8.09567432,194.63,194.57,8.09567432]
[1735673012477,8.09567432,194.63,194.58,8.09567432]
[1735673013275,8.09567432,194.63,194.57,8.09567432]
[1735673014743,8.09567432,194.64,194.58,8.09567432]
[1735673015360,8.09567432,194.65,194.59,8.09567432]
[1735673015561,8.09567432,194.65,194.6,8.09567432]
[1735673015747,5.70777746,194.7,194.61,8.09567432]
[1735673015953,8.09567432,194.67,194.61,8.09567432]
[1735673016147,8.09567432,194.68,194.62,8.09567432]
[1735673016347,8.09567432,194.66,194.6,28.09567432]
[1735673016875,8.09567432,194.65,194.6,20.0]
[1735673017051,8.09567432,194.65,194.59,8.09567432]
[1735673017465,8.09567432,194.64,194.58,20.94327432]
[1735673018487,8.09567432,194.64,194.58,8.09567432]
[1735673018651,8.09567432,194.63,194.57,8.09567432]
[1735673019670,8.09567432,194.62,194.57,8.09567432]
[1735673019862,8.09567432,194.62,194.56,8.09567432]
[1735673020064,8.09567432,194.62,194.57,8.09567432]
[1735673021295,8.09567432,194.63,194.57,8.09567432]
[1735673021765,23.776884,194.7,194.59,8.09567432]
[1735673021965,8.09567432,194.65,194.59,8.09567432]
[1735673022165,8.09567432,194.64,194.58,20.94377432]
[1735673023057,8.09567432,194.62,194.56,8.09567432]
[1735673023589,8.09567432,194.63,194.56,8.09567432]
[1735673023761,8.09567432,194.61,194.55,40.94567432]
[1735673023966,8.09567432,194.62,194.56,8.09567432]
[1735673025778,8.09567432,194.63,194.56,8.09567432]
[1735673028374,1.6131,194.64,194.56,8.09567432]
[1735673028671,8.09567432,194.63,194.57,8.09567432]
[1735673028876,8.09567432,194.63,194.55,32.85]
[1735673028877,8.09567432,194.65,194.58,8.09567432]
[1735673030881,8.09567432,194.65,194.59,8.09567432]
[1735673031980,7.58305987,194.68,194.59,14.71267432]
[1735673032282,8.09567432,194.65,194.6,8.09567432]
[1735673032486,8.09567432,194.65,194.59,14.71267432]
[1735673035981,8.09567432,194.64,194.59,14.71267432]
[1735673036983,8.09567432,194.64,194.58,8.09567432]
[1735673037183,8.09567432,194.63,194.57,20.94397432]
[1735673037693,8.09567432,194.64,194.58,8.09567432]
[1735673038685,8.09567432,194.63,194.57,20.94397432]
[1735673039967,8.09567432,194.61,194.54,19.4674]
[1735673040191,8.09567432,194.59,194.54,6.617]
[1735673040893,23.776884,194.67,194.54,14.71267432]
[1735673040894,8.09567432,194.6,194.54,14.71267432]
[1735673041681,8.09567432,194.61,194.55,8.09567432]
[1735673044288,8.09567432,194.6,194.55,8.09567432]
[1735673046398,8.09567432,194.6,194.54,14.71267432]
[1735673046713,8.09567432,194.59,194.51,12.8525]
[1735673046899,8.09567432,194.58,194.51,20.94817432]
[1735673047084,8.09567432,194.57,194.51,8.09567432]
[1735673047280,8.09567432,194.56,194.5,8.09567432]
[1735673047588,8.09567432,194.57,194.51,8.09567432]
[1735673048099,8.09567432,194.57,194.49,6.4853]
[1735673048100,8.09567432,194.55,194.49,14.58097432]
[1735673049579,8.09567432,194.56,194.5,8.09567432]
[1735673050175,7.58305987,194.6,194.54,8.09567432]
[1735673050375,8.09567432,194.59,194.5,12.8534]
[1735673050579,8.09567432,194.56,194.49,6.4853]
[1735673050782,8.09567432,194.56,194.5,8.09567432]
[1735673052612,8.09567432,194.55,194.49,8.09567432]
[1735673052913,8.09567432,194.56,194.5,8.09567432]
[1735673053411,8.09567432,194.56,194.46,12.8555]
[1735673053412,8.09567432,194.55,194.49,8.09567432]
[1735673053583,23.776884,194.59,194.49,8.09567432]
[1735673053787,8.09567432,194.55,194.49,8.09567432]
[1735673054182,8.09567432,194.54,194.48,8.09567432]
[1735673055105,8.09567432,194.53,194.47,8.09567432]
[1735673055703,23.776884,194.59,194.45,8.09567432]
[1735673055704,8.09567432,194.51,194.45,8.09567432]
[1735673056533,8.09567432,194.5,194.45,8.09567432]
[1735673056700,8.09567432,194.51,194.45,7.59567432]
[1735673057784,8.09567432,194.49,194.43,12.8578]
[1735673057983,8.09567432,194.48,194.43,20.95347432]
[1735673058792,8.09567432,194.48,194.43,12.8578]
[1735673059014,8.09567432,194.48,194.43,20.95347432]
[1735673059995,8.09567432,194.47,194.39,8.0183]
[1735673060193,8.09567432,194.46,194.4,12.86]
[1735673060393,8.09567432,194.46,194.4,20.95567432]
[1735673061611,8.09567432,194.46,194.41,8.09567432]
[1735673062312,8.09567432,194.47,194.41,8.09567432]
[1735673062909,8.09567432,194.48,194.42,8.09567432]
[1735673064414,9.21905987,194.56,194.45,8.09567432]
[1735673064591,8.09567432,194.51,194.45,8.09567432]
[1735673065591,9.21905987,194.56,194.45,8.09567432]
[1735673065592,8.09567432,194.5,194.45,8.09567432]
[1735673066418,8.09567432,194.51,194.45,8.09567432]
[1735673068220,8.09567432,194.52,194.46,8.09567432]
[1735673069922,8.09567432,194.52,194.46,20.95167432]
[1735673070212,8.09567432,194.51,194.46,12.856]
[1735673070613,8.09567432,194.52,194.46,20.95167432]
[1735673070829,8.09567432,194.49,194.43,12.8579]
[1735673070994,8.09567432,194.49,194.43,20.95357432]
[1735673071611,8.09567432,194.5,194.44,8.09567432]
[1735673072113,8.09567432,194.49,194.43,20.95357432]
[1735673073014,8.09567432,194.49,194.43,12.8579]
[1735673073317,8.09567432,194.47,194.41,8.09567432]
[1735673073696,8.09567432,194.45,194.4,12.8599]
[1735673074237,8.09567432,194.46,194.4,20.95557432]
[1735673074901,8.09567432,194.47,194.4,20.95557432]
[1735673075915,8.09567432,194.47,194.41,8.09567432]
[1735673076124,8.09567432,194.46,194.4,12.8599]
[1735673076504,8.09567432,194.46,194.4,20.95557432]
[1735673076899,8.09567432,194.47,194.41,8.09567432]
[1735673077706,8.09567432,194.48,194.42,8.09567432]
[1735673077907,8.09567432,194.49,194.43,8.09567432]
[1735673078118,8.09567432,194.49,194.42,20.95397432]
[1735673078630,8.09567432,194.5,194.43,8.09567432]
[1735673078802,8.09567432,194.49,194.43,8.09567432]
[1735673079629,8.09567432,194.51,194.44,8.09567432]
[1735673079807,8.09567432,194.5,194.44,8.09567432]
[1735673080130,8.09567432,194.49,194.43,8.09567432]
[1735673081841,23.776884,194.55,194.43,8.09567432]
[1735673081842,8.09567432,194.5,194.43,8.09567432]
[1735673083627,8.09567432,194.5,194.44,8.09567432]
[1735673084614,8.09567432,194.49,194.43,8.09567432]
[1735673085027,20.0,194.52,194.44,8.09567432]
[1735673085225,8.09567432,194.5,194.44,8.09567432]
[1735673085425,9.21905987,194.56,194.45,8.09567432]
[1735673085626,9.21905987,194.56,194.46,8.09567432]
[1735673085627,8.09567432,194.52,194.46,8.09567432]
[1735673085826,8.09567432,194.53,194.46,8.09567432]
[1735673086636,8.09567432,194.52,194.46,8.09567432]
[1735673086938,8.09567432,194.52,194.46,20.95167432]
[1735673088211,8.09567432,194.54,194.47,8.09567432]
[1735673088418,3.86682253,194.6,194.5,8.09567432]
[1735673088618,8.09567432,194.56,194.5,8.09567432]
[1735673090840,8.09567432,194.56,194.49,8.09567432]
[1735673093244,8.09567432,194.56,194.5,8.09567432]
[1735673097147,8.09567432,194.56,194.49,8.09567432]
[1735673098045,8.09567432,194.55,194.49,8.09567432]
[1735673098749,8.09567432,194.56,194.5,8.09567432]
[1735673101351,8.09567432,194.57,194.51,8.09567432]
[1735673101651,7.58305987,194.62,194.53,8.09567432]
[1735673101860,8.09567432,194.61,194.55,8.09567432]
[1735673104347,8.09567432,194.61,194.56,12.8495]
[1735673104961,7.58305987,194.66,194.56,12.8495]
[1735673104962,7.58305987,194.66,194.56,20.94517432]
[1735673105151,8.09567432,194.62,194.56,20.94517432]
[1735673105330,8.09567432,194.61,194.52,1.6497]
[1735673105530,8.09567432,194.61,194.56,20.0]
[1735673105739,8.09567432,194.59,194.53,12.8514]
[1735673106229,8.09567432,194.59,194.53,20.94707432]
[1735673106748,1.6364,194.69,194.58,8.09567432]
[1735673107057,1.6364,194.69,194.55,12.8501]
[1735673107058,8.09567432,194.63,194.57,8.09567432]
[1735673107450,8.09567432,194.63,194.56,8.09567432]
[1735673108540,8.09567432,194.62,194.56,8.09567432]
[1735673109559,8.09567432,194.63,194.56,8.09567432]
[1735673109758,8.09567432,194.62,194.56,8.09567432]
[1735673110387,8.09567432,194.64,194.58,8.09567432]
[1735673110534,8.09567432,194.65,194.59,8.09567432]
[1735673110738,6.08122566,194.73,194.61,8.09567432]
[1735673110955,8.09567432,194.67,194.61,8.09567432]
[1735673111152,8.09567432,194.66,194.61,8.09567432]
[1735673111340,8.09567432,194.66,194.59,1.5604]
[1735673111341,8.09567432,194.66,194.6,8.09567432]
[1735673112965,8.09567432,194.63,194.6,12.8466]
[1735673113167,8.09567432,194.64,194.6,12.8466]
[1735673114665,8.09567432,194.65,194.6,12.8466]
[1735673115163,32.38269728,194.7,194.6,20.94227432]
[1735673115164,8.09567432,194.66,194.6,20.94227432]
[1735673117280,8.09567432,194.66,194.6,8.09567432]
[1735673117578,8.09567432,194.65,194.59,9.65607432]
[1735673117989,8.09567432,194.65,194.6,8.09567432]
[1735673118471,8.09567432,194.64,194.59,9.65607432]
[1735673118647,8.09567432,194.65,194.59,9.65607432]
[1735673118985,8.09567432,194.66,194.6,8.09567432]
[1735673120147,8.09567432,194.65,194.59,9.65607432]
[1735673121283,36.615484,194.73,194.6,8.09567432]
[1735673121284,8.09567432,194.66,194.6,8.09567432]
[1735673123072,8.09567432,194.65,194.59,9.65607432]
[1735673123255,8.09567432,194.63,194.58,6.4829]
[1735673123457,8.09567432,194.61,194.58,6.4829]
[1735673124349,8.09567432,194.62,194.58,6.4829]
[1735673126147,8.09567432,194.65,194.59,8.09567432]
[1735673126542,8.09567432,194.66,194.6,8.09567432]
[1735673127373,20.0,194.69,194.61,1.6502]
[1735673127567,8.09567432,194.66,194.61,9.74587432]
[1735673127969,8.09567432,194.66,194.61,1.6502]
[1735673128171,8.09567432,194.65,194.61,1.6502]
[1735673132557,8.09567432,194.62,194.58,6.4829]
[1735673133366,45.22329728,194.7,194.58,6.4829]
[1735673133367,8.09567432,194.63,194.58,6.4829]
[1735673133686,8.09567432,194.62,194.58,6.4829]
[1735673134103,8.09567432,194.61,194.58,6.4829]
[1735673134902,8.09567432,194.62,194.58,6.4829]
[1735673135672,8.09567432,194.61,194.58,6.4829]
[1735673136073,8.09567432,194.62,194.58,6.4829]
[1735673137086,8.09567432,194.61,194.58,6.4829]
[1735673137996,8.09567432,194.62,194.58,6.4829]
[1735673139685,8.09567432,194.59,194.53,20.0]
[1735673139973,8.09567432,194.6,194.54,8.09567432]
[1735673140505,8.09567432,194.62,194.56,8.09567432]
[1735673141098,3.86488104,194.69,194.59,8.09567432]
[1735673141287,8.09567432,194.65,194.59,8.09567432]
[1735673142000,8.09567432,194.66,194.6,8.09567432]
[1735673142393,8.09567432,194.65,194.59,8.09567432]
[1735673144608,8.09567432,194.64,194.59,8.09567432]
[1735673144922,8.09567432,194.64,194.58,8.09567432]
[1735673145729,8.09567432,194.64,194.59,8.09567432]
[1735673146028,8.09567432,194.65,194.59,8.09567432]
[1735673147036,15.97421104,194.75,194.55,23.776884]
[1735673147037,16.02686742,194.77,194.68,20.0]
[1735673147209,16.02686742,194.77,194.71,8.09567432]
[1735673147407,8.09567432,194.78,194.71,8.09567432]
[1735673147607,3.86231314,194.8,194.73,8.09567432]
[1735673147998,8.09567432,194.79,194.72,8.09567432]
[1735673148900,8.09567432,194.78,194.72,8.09567432]
[1735673149702,8.09567432,194.78,194.71,8.09567432]
[1735673150626,8.09567432,194.77,194.71,8.09567432]
[1735673150938,8.09567432,194.76,194.7,9.72597432]
[1735673152530,8.09567432,194.76,194.7,1.6303]
[1735673152830,8.09567432,194.75,194.7,1.6303]
[1735673154706,8.09567432,194.76,194.7,9.72597432]
[1735673154904,8.09567432,194.78,194.71,8.09567432]
[1735673155324,23.776884,194.81,194.7,1.6303]
[1735673155325,8.09567432,194.79,194.72,8.09567432]
[1735673155711,8.09567432,194.78,194.72,8.09567432]
[1735673157407,8.09567432,194.76,194.7,9.72597432]
[1735673158918,8.09567432,194.77,194.7,9.72597432]
[1735673159112,8.09567432,194.74,194.7,1.6303]
[1735673160224,8.09567432,194.73,194.68,20.0]
[1735673160534,8.09567432,194.73,194.67,8.09567432]
[1735673162127,8.09567432,194.72,194.66,8.09567432]
[1735673162426,8.09567432,194.73,194.66,8.09567432]
[1735673162807,8.09567432,194.73,194.67,8.09567432]
[1735673163002,8.09567432,194.74,194.67,8.09567432]
[1735673163216,6.6413,194.82,194.7,8.09567432]
[1735673163217,1.6413,194.82,194.7,8.09567432]
[1735673163408,8.09567432,194.77,194.7,8.09567432]
[1735673163622,8.09567432,194.78,194.72,8.09567432]
[1735673163814,8.09567432,194.79,194.73,8.09567432]
[1735673164025,8.09567432,194.78,194.72,8.09567432]
[1735673165343,8.09567432,194.76,194.7,8.09567432]
[1735673165706,8.09567432,194.74,194.66,12.8425]
[1735673165912,8.09567432,194.74,194.68,8.09567432]
[1735673166228,8.09567432,194.74,194.66,12.8425]
[1735673166433,8.09567432,194.73,194.67,8.09567432]
[1735673169533,8.09567432,194.75,194.68,8.09567432]
[1735673169839,8.09567432,194.76,194.7,8.09567432]
[1735673170226,8.09567432,194.77,194.7,8.09567432]
[1735673170540,8.09567432,194.79,194.72,8.09567432]
[1735673170912,8.09567432,194.79,194.73,8.09567432]
[1735673171129,8.09567432,194.81,194.75,8.09567432]
[1735673171433,8.09567432,194.82,194.75,8.09567432]
[1735673171827,8.09567432,194.81,194.74,8.09567432]
[1735673173043,8.09567432,194.8,194.74,8.09567432]
[1735673173336,8.09567432,194.79,194.73,7.962]
[1735673173543,8.09567432,194.77,194.73,7.962]
[1735673173731,8.09567432,194.8,194.73,16.05767432]
[1735673173925,8.09567432,194.8,194.74,8.09567432]
[1735673174129,8.09567432,194.81,194.74,8.09567432]
[1735673174324,8.09567432,194.82,194.75,8.09567432]
[1735673175318,8.09567432,194.83,194.76,8.09567432]
[1735673175632,8.09567432,194.84,194.77,8.09567432]
[1735673175838,8.09567432,194.84,194.78,8.09567432]
[1735673176342,8.09567432,194.86,194.79,8.09567432]
[1735673176939,8.09567432,194.87,194.8,8.09567432]
[1735673177238,20.0,194.89,194.81,8.09567432]
[1735673177239,8.09567432,194.88,194.81,8.09567432]
[1735673177544,8.09567432,194.87,194.8,15.87917432]
[1735673178236,8.09567432,194.86,194.8,15.87917432]
[1735673178555,8.09567432,194.86,194.8,7.7835]
[1735673180144,8.09567432,194.81,194.75,7.7835]
[1735673180451,8.09567432,194.82,194.75,15.87917432]
[1735673181919,8.09567432,194.8,194.75,7.7835]
[1735673182516,8.09567432,194.78,194.75,7.7835]
[1735673182736,8.09567432,194.78,194.71,8.09567432]
[1735673183823,8.09567432,194.79,194.72,8.09567432]
[1735673184146,8.09567432,194.78,194.72,8.09567432]
[1735673184822,8.09567432,194.79,194.72,8.09567432]
[1735673185742,8.09567432,194.8,194.74,8.09567432]
[1735673186325,8.09567432,194.81,194.74,8.09567432]
[1735673188033,8.09567432,194.79,194.73,20.0]
[1735673190123,8.09567432,194.8,194.73,20.0]
[1735673190325,8.09567432,194.8,194.73,28.09567432]
[1735673191446,8.09567432,194.81,194.74,8.09567432]
[1735673191825,8.09567432,194.8,194.73,28.09567432]
[1735673192766,8.09567432,194.8,194.73,8.09567432]
[1735673192937,8.09567432,194.79,194.72,8.09567432]
[1735673193324,8.09567432,194.8,194.73,8.09567432]
[1735673193753,8.09567432,194.81,194.74,8.09567432]
[1735673194148,8.09567432,194.8,194.73,8.09567432]
[1735673196340,8.09567432,194.79,194.72,8.09567432]
[1735673196546,8.09567432,194.76,194.7,7.7835]
[1735673196940,8.09567432,194.77,194.7,15.87917432]
[1735673198679,8.09567432,194.78,194.71,8.09567432]
[1735673198834,8.09567432,194.77,194.7,15.87917432]
[1735673200850,8.09567432,194.77,194.71,8.09567432]
[1735673201043,8.09567432,194.79,194.72,8.09567432]
[1735673201240,20.0,194.83,194.73,8.09567432]
[1735673201550,8.09567432,194.79,194.73,8.09567432]
[1735673201958,8.09567432,194.8,194.73,8.09567432]
[1735673202731,8.09567432,194.79,194.72,8.09567432]
[1735673203156,8.09567432,194.79,194.73,8.09567432]
[1735673204438,8.09567432,194.79,194.72,8.09567432]
[1735673204951,8.09567432,194.77,194.71,12.8396]
[1735673205355,8.09567432,194.78,194.71,20.93527432]
[1735673207162,23.776884,194.82,194.71,20.93527432]
[1735673207462,8.09567432,194.78,194.71,20.93527432]
[1735673207987,23.776884,194.82,194.71,20.93527432]
[1735673208198,8.09567432,194.78,194.71,20.93527432]
[1735673208362,23.776884,194.82,194.71,20.93527432]
[1735673208693,8.09567432,194.77,194.71,20.93527432]
[1735673209388,8.09567432,194.77,194.71,12.8396]
[1735673209784,8.09567432,194.77,194.71,20.93527432]
[1735673211489,8.09567432,194.77,194.71,12.8396]
[1735673214418,8.09567432,194.77,194.71,20.93527432]
[1735673215820,8.09567432,194.78,194.71,20.93527432]
[1735673216108,8.09567432,194.79,194.72,8.09567432]
[1735673217222,8.09567432,194.8,194.73,20.93387432]
[1735673219823,8.09567432,194.79,194.73,20.93387432]
[1735673221017,8.09567432,194.79,194.73,12.8382]
[1735673221589,8.09567432,194.79,194.73,20.93387432]
[1735673222017,8.09567432,194.8,194.73,20.93387432]
[1735673224926,8.09567432,194.79,194.73,20.93387432]
[1735673225540,8.09567432,194.79,194.73,12.8382]
[1735673226812,20.0,194.83,194.73,20.93387432]
[1735673227014,8.09567432,194.79,194.73,12.8382]
[1735673227435,8.09567432,194.77,194.7,28.71897432]
[1735673228027,8.09567432,194.77,194.7,15.87917432]
[1735673228257,8.09567432,194.76,194.7,7.7835]
[1735673228552,8.09567432,194.72,194.7,6.251]
[1735673229631,32.38269728,194.8,194.66,1.5903]
[1735673229632,8.09567432,194.71,194.66,1.5903]
[1735673230112,8.09567432,194.72,194.66,1.5903]
[1735673230311,30.89611084,194.79,194.68,8.09567432]
[1735673230312,8.09567432,194.74,194.68,8.09567432]
[1735673231053,8.09567432,194.75,194.68,8.09567432]
[1735673233547,8.09567432,194.75,194.68,20.93687432]
[1735673233756,3.8623695,194.82,194.7,8.09567432]
[1735673233757,8.09567432,194.76,194.7,8.09567432]
[1735673233935,8.09567432,194.77,194.7,8.09567432]
[1735673234640,1.6149,194.84,194.72,20.0]
[1735673234954,8.09567432,194.79,194.72,28.09567432]
[1735673238352,8.09567432,194.78,194.72,28.09567432]
[1735673240059,8.09567432,194.78,194.72,20.0]
[1735673240645,8.09567432,194.77,194.72,20.0]
[1735673246181,8.09567432,194.78,194.72,20.0]
[1735673246358,8.09567432,194.8,194.73,22.58307432]
[1735673246664,8.09567432,194.81,194.74,8.09567432]
[1735673246869,7.11922684,194.86,194.75,8.09567432]
[1735673247160,8.09567432,194.82,194.76,28.09567432]
[1735673249348,8.09567432,194.81,194.76,20.0]
[1735673250586,7.11922684,194.86,194.77,8.09567432]
[1735673250774,8.09567432,194.84,194.78,8.09567432]
[1735673251952,8.09567432,194.84,194.77,20.93097432]
[1735673252152,8.09567432,194.83,194.77,20.93097432]
[1735673252747,8.09567432,194.82,194.77,12.8353]
[1735673254392,8.09567432,194.81,194.77,12.8353]
[1735673254883,8.09567432,194.82,194.77,12.8353]
[1735673255105,8.09567432,194.79,194.74,32.8375]
[1735673255424,8.09567432,194.78,194.74,32.8375]
[1735673259174,8.09567432,194.78,194.74,20.0]
[1735673259391,8.09567432,194.77,194.74,20.0]
[1735673260411,8.09567432,194.76,194.74,20.0]
[1735673263405,8.09567432,194.78,194.74,20.0]
[1735673266695,8.09567432,194.79,194.74,20.0]
[1735673267398,8.09567432,194.8,194.74,20.0]
[1735673268029,8.09567432,194.79,194.74,20.0]
[1735673268315,1.5907,194.83,194.74,20.0]
[1735673268316,8.09567432,194.78,194.74,20.0]
[1735673271515,8.09567432,194.77,194.74,20.0]
[1735673272516,8.09567432,194.78,194.74,20.0]
[1735673272914,8.09567432,194.77,194.74,20.0]
[1735673275928,8.09567432,194.78,194.74,20.0]
[1735673278617,8.09567432,194.78,194.74,32.8372]
[1735673278826,8.09567432,194.77,194.74,32.8372]
[1735673280606,8.09567432,194.77,194.74,20.0]
[1735673282123,8.09567432,194.78,194.74,20.0]
[1735673284234,8.09567432,194.8,194.74,20.0]
[1735673284532,8.09567432,194.81,194.75,12.8369]
[1735673284836,8.09567432,194.8,194.75,12.8369]
[1735673286811,8.09567432,194.81,194.75,12.8369]
[1735673287223,8.09567432,194.78,194.75,12.8369]
[1735673287423,8.09567432,194.79,194.75,12.8369]
[1735673288916,8.09567432,194.78,194.74,20.0]
[1735673289118,8.09567432,194.76,194.74,20.0]
[1735673290052,8.09567432,194.77,194.74,20.0]
[1735673290344,8.09567432,194.78,194.74,20.0]
[1735673291146,8.09567432,194.8,194.74,20.0]
[1735673291536,8.09567432,194.79,194.74,20.0]
[1735673292126,8.09567432,194.78,194.74,20.0]
[1735673292346,8.09567432,194.75,194.71,6.5112]
[1735673292656,8.09567432,194.76,194.71,6.5112]
[1735673293743,8.09567432,194.77,194.71,27.44617432]
[1735673294149,8.09567432,194.79,194.72,8.09567432]
[1735673294328,27.6384917,194.86,194.73,8.09567432]
[1735673294527,8.09567432,194.79,194.72,8.09567432]
[1735673295144,8.09567432,194.77,194.74,20.0]
[1735673295446,8.09567432,194.78,194.74,20.0]
[1735673295851,8.09567432,194.76,194.71,19.3505]
[1735673296851,8.09567432,194.77,194.71,19.3505]
[1735673297147,8.09567432,194.77,194.71,27.44617432]
[1735673297521,8.09567432,194.77,194.71,19.3505]
[1735673297726,8.09567432,194.76,194.71,19.3505]
[1735673300152,8.09567432,194.78,194.71,27.44617432]
[1735673300560,8.09567432,194.79,194.72,8.09567432]
[1735673300947,8.09567432,194.79,194.73,12.8382]
[1735673301254,8.09567432,194.79,194.73,20.93387432]
[1735673301772,20.0,194.84,194.74,8.09567432]
[1735673301934,8.09567432,194.81,194.74,8.09567432]
[1735673302135,8.09567432,194.8,194.73,20.93387432]
[1735673304152,8.09567432,194.81,194.74,8.09567432]
[1735673307575,20.0,194.84,194.74,8.09567432]
[1735673307806,8.09567432,194.81,194.74,8.09567432]
[1735673308576,8.09567432,194.79,194.73,12.8382]
[1735673309256,20.0,194.83,194.73,12.8382]
[1735673309466,8.09567432,194.79,194.73,12.8382]
[1735673311585,8.09567432,194.8,194.73,20.93387432]
[1735673312459,8.09567432,194.81,194.74,8.09567432]
[1735673315377,8.09567432,194.8,194.73,20.93387432]
[1735673318584,8.09567432,194.8,194.73,12.8382]
[1735673320378,8.09567432,194.8,194.71,6.5112]
[1735673320585,8.09567432,194.75,194.71,6.5112]
[1735673320881,8.09567432,194.74,194.69,9.65780831]
[1735673321282,8.09567432,194.74,194.69,1.6226]
[1735673322282,8.09567432,194.75,194.69,1.6226]
[1735673325376,8.09567432,194.77,194.7,8.09567432]
[1735673325573,8.09567432,194.77,194.71,8.09567432]
[1735673326479,8.09567432,194.77,194.7,8.09567432]
[1735673328083,8.09567432,194.77,194.71,8.09567432]
[1735673329383,8.09567432,194.77,194.7,8.09567432]
[1735673329966,8.09567432,194.76,194.69,42.55917432]
[1735673332082,8.09567432,194.78,194.71,8.09567432]
[1735673332287,8.09567432,194.77,194.7,8.09567432]
[1735673332888,8.09567432,194.78,194.71,20.93487432]
[1735673333266,8.09567432,194.77,194.71,20.93487432]
[1735673335489,8.09567432,194.77,194.71,12.8392]
[1735673342297,8.09567432,194.78,194.71,20.93487432]
[1735673344796,8.09567432,194.78,194.71,12.8392]
[1735673345291,8.09567432,194.78,194.71,20.93487432]
[1735673345992,8.09567432,194.78,194.71,12.8392]
[1735673348592,21.5027,194.81,194.69,21.6226]
[1735673348593,8.09567432,194.76,194.69,21.6226]
[1735673349194,8.09567432,194.76,194.69,29.71827432]
[1735673354999,8.09567432,194.72,194.69,1.6226]
[1735673355195,8.09567432,194.72,194.67,8.03520831]
[1735673355599,8.09567432,194.72,194.66,6.3652]
[1735673355911,8.09567432,194.73,194.67,8.09567432]
[1735673357205,8.09567432,194.74,194.67,8.09567432]
[1735673358914,8.09567432,194.74,194.67,20.93747432]
[1735673359098,8.09567432,194.77,194.7,8.09567432]
[1735673359606,8.09567432,194.76,194.7,8.09567432]
[1735673359989,8.09567432,194.76,194.69,8.09567432]
[1735673369323,8.09567432,194.75,194.68,8.09567432]
[1735673369897,8.09567432,194.76,194.69,8.09567432]
[1735673370699,20.0,194.8,194.7,28.09567432]
[1735673371001,8.09567432,194.76,194.7,20.0]
[1735673377025,8.09567432,194.74,194.67,8.09567432]
[1735673377318,8.09567432,194.73,194.66,35.33848263]
[1735673377696,8.09567432,194.74,194.7,20.0]
[1735673377902,8.09567432,194.73,194.69,20.0]
[1735673378213,8.09567432,194.74,194.7,20.0]